[Event "Croatian 1B League 2022"]
[Site "Porec"]
[Date "2022.09.26"]
[Round "3.12"]
[White "Novosel, Lovro"]
[Black "Vargic, Drago"]
[Result "1-0"]
[ECO "A04"]
[WhiteElo "2274"]
[BlackElo "2259"]
[Annotator "TA"]
[PlyCount "315"]
[EventDate "2022.09.24"]
[EventType "team-tourn"]
[EventCountry "CRO"]
[SourceTitle "playchess.com"]
[Source "ChessBase"]
[SourceQuality "1"]
[TimeControl "40/5400+30:1800+30"]

{[%evp 77,315,77,89,77,77,6,6,6,6,0,0,6,106,6,6,0,0,0,0,0,0,-91,-91,-91,-91,-91,16,0,0,-4586,-4586,-4578,-4570,-6070,-5165,-2279,-2056,-1786,0,0,0,0,0,0,116,118,410,873,884,410,883,882,743,543,486,86,859,866,859,803,781,772,1922,1922,1620,574,1922,1841,1922,1922,1922,1922,1922,1922,1922,214,1922,1922,1922,1922,1922,1922,1922,1922,1922,1922,1922,1922,1922,1922,1922,1922,1922,1922,1922,1922,1922,1922,1922,1922,1922,1224,1922,1922,1922,1922,1922,1922,1922,1922,1922,1922,1922,1753,1922,1922,1922,1914,1922,1922,1922,1922,1922,1922,1922,1914,1914,1914,1914,1914,1907,1907,1890,1900,1900,1900,2376,2498,992,995,995,977,977,901,876,825,803,789,779,702,464,560,12849,287,287,287,272,0,29981,29959,29978,29979,29984,29985,29984,29976,29985,29972,29974,29975,29974,29977,29981,29971,29976,0,29958,29956,29959,29961,29965,29967,29967,29968,29970,29972,29972,29972,29972,29972,29973,29975,29975,29976,29976,29976,29982,29975,29974,29973,29973,29975,29976,29977,29977,29967,29972,29973,29964,12470,29967,0,29965,3525,29968,29969,29974,29977,29977,29978,29978,29979,29979,29979,29979,29979,29979,29979,29980,29980,29980,29981,29984,29982,29982,29982,29982,29983,29985,29986]} 1. Nf3 {[%emt 0:00:09]} e6 {[%emt 0:01:03]} 2. g3 {[%emt 0:00:13]} c5 {[%emt 0:00:53]} 3. Bg2 {[%emt 0:00:36]} Nc6 {[%emt 0:01:07]} 4. c4 {[%emt 0:00:34]} a6 {[%emt 0:01:36]} 5. O-O {[%emt 0:00:52]} h5 {[%emt 0:04:37]} 6. h4 {[%emt 0:00:38]} Be7 {[%emt 0:02:51]} 7. Nc3 {[%emt 0:02:19]} Nh6 {[%emt 0:05:09]} 8. d4 {[%emt 0:10:53]} cxd4 {[%emt 0:03:56]} 9. Nxd4 {[%emt 0:00:21]} Ng4 {[%emt 0:12:19]} 10. Ne4 {[%emt 0:12:36]} O-O {[%emt 0:06:15]} 11. Ng5 {[%emt 0:10:55]} g6 {[%emt 0:07:19]} 12. Nxc6 {[%emt 0:09:51]} bxc6 {[%emt 0:05:36]} 13. Qc2 {[%emt 0:01:40]} Qb6 {[%emt 0:01:47]} 14. b3 {[%emt 0:02:08]} Bf6 {[%emt 0:04:05]} 15. Bb2 {[%emt 0:05:09]} Bxb2 {[%emt 0:02:10]} 16. Qxb2 {[%emt 0:00:05]} d5 {[%emt 0:00:07]} 17. Rac1 {[%emt 0:01:41]} a5 {[%emt 0:05:22]} 18. Bf3 {[%emt 0:05:24]} f6 {[%emt 0:11:37]} 19. Nh3 {[%emt 0:01:40]} Ne5 {[%emt 0:02:32]} 20. cxd5 {[%emt 0:03:40]} Nxf3+ {[%emt 0:03:18]} 21. exf3 {[%emt 0:00:03]} exd5 {[%emt 0:00:10]} 22. Nf4 {[%emt 0:02:08]} Bf5 {[%emt 0:00:21]} 23. Qc3 {[%emt 0:01:34]} Rac8 {[%emt 0:01:39]} 24. Rfe1 {[%emt 0:00:43]} Qb4 {[%emt 0:04:00]} 25. Qc5 {[%emt 0:03:54]} Rfd8 {[%emt 0:05:27]} 26. Kg2 {[%emt 0:03:03]} Qxc5 {[%emt 0:04:47]} 27. Rxc5 {[%emt 0:00:02]} Kf7 {[%emt 0:00:08]} 28. Rxa5 {[%emt 0:01:35]} Ra8 {[%emt 0:00:19]} 29. Rc5 {[%emt 0:07:05]} g5 {[%emt 0:01:18]} 30. hxg5 {[%emt 0:00:28]} fxg5 {[%emt 0:00:06]} 31. Nxh5 {[%emt 0:00:17]} Rd6 {[%emt 0:01:12]} 32. Re2 {[%emt 0:05:48]} Bb1 {[%emt 0:00:36]} 33. a4 {[%emt 0:05:08]} Rb8 {[%emt 0:00:18]} 34. Rb2 {[%emt 0:00:15]} Bg6 {[%emt 0:00:34]} 35. g4 {[%emt 0:00:02]} d4 {[%emt 0:00:15]} 36. Rxg5 {[%emt 0:00:42]} d3 {[%emt 0:00:26]} 37. Rd2 {[%emt 0:00:01]} Rxb3 {[%emt 0:01:03]} 38. Nf4 {[%emt 0:00:19]} Rc3 {[%emt 0:01:04]} 39. Nxg6 {[%emt 0:04:13]} Rxg6 {[%emt 0:00:51]} 40. Rxg6 {[%emt 0:00:00]} Kxg6 {[%emt 0:00:00]} 41. f4 $1 {[%emt 0:02:35]} c5 $1 {[%emt 0:08:42]} 42. Kf3 {[%emt 0:01:42]} c4 $1 {[%emt 0:00:08]} 43. Ke3 {[%emt 0:03:09]} Rc1 $1 {[%emt 0:03:00]} 44. Rb2 {[%emt 0:03:32]} Ra1 {[%emt 0:04:50]} (44... Rd1 $1 $11 45. Kd4 Rc1) 45. a5 {[%emt 0:07:38]} ({White should try} 45. f3 $16) 45... Rxa5 $11 {[%emt 0:00:50]} 46. Rb6+ {[%emt 0:00:07]} Kf7 {[%emt 0:00:29]} 47. Rb7+ {[%emt 0:02:03]} Ke8 {[%emt 0:01:18]} 48. Rb8+ {[%emt 0:05:53]} Kd7 {[%emt 0:02:24]} 49. Rb7+ {[%emt 0:01:53]} (49. Rb1 $1 $11) 49... Kc6 $17 {[%emt 0:01:51]} 50. Rb4 {[%emt 0:02:04]} Kc5 {[%emt 0:00:28]} 51. Rb8 {[%emt 0:01:14]} Ra2 {[%emt 0:00:25]} (51... Ra7 $1 $17 {[%cal Ra7e7] ...Re7+ is the strong threat.} 52. Rd8 Re7+ 53. Kf3 Rc7) 52. Rc8+ {[%emt 0:00:14]} Kb4 {[%emt 0:00:16]} 53. g5 $2 {[%emt 0:01:30][%mdl 8192]} (53. Rd8 $11) 53... Re2+ $19 {[%emt 0:01:18]} 54. Kf3 {[%emt 0:00:01]} Re1 {[%emt 0:00:37]} 55. Rb8+ {[%emt 0:02:45]} Kc3 {[%emt 0:04:14]} 56. Rd8 {[%emt 0:01:13]} d2 {[%emt 0:01:27]} 57. f5 {[%emt 0:00:11] [#]} d1=Q+ $2 {[%emt 0:02:02]} (57... Re8 $1 $19 {[%cal Re8d8][%mdl 512]} 58. Rd7 (58. Rxe8 d1=Q+) 58... Kc2) 58. Rxd1 $11 {[%emt 0:00:03]} Rxd1 {[%emt 0:00:17]} 59. f6 {[%emt 0:00:20]} Kb2 {[%emt 0:03:56]} 60. f7 {[%emt 0:01:10]} Rd8 {[%emt 0:00:22]} (60... c3 $1 $11 {remains equal.} 61. f8=Q c2) 61. g6 $16 {[%emt 0:00:04]} c3 $2 {[%emt 0:00:16][%mdl 8192]} (61... Rf8 $16 {was necessary.}) 62. g7 $18 {[%emt 0:00:04]} c2 {[%emt 0:00:09]} 63. f8=Q {[%emt 0:00:49]} (63. g8=Q $142 Rxg8 64. fxg8=Q) 63... Rxf8+ {[%emt 0:00:41]} (63... c1=Q $142 64. Qxd8 Qc3+ 65. Ke4 Qe1+ 66. Kf5 Qxf2+ 67. Ke6 Qe3+ 68. Kf7 Qb3+ 69. Ke7 Qe3+ 70. Kf7 Qb3+ 71. Kf8 Qb4+ 72. Kg8 Qb3+ 73. Kh7 Qc2+ 74. Kh8 (74. Kh6 Qh2+ 75. Kg6 Qc2+ 76. Kh5 Qh7+ 77. Kg4 Qxg7+ 78. Kf5 Qh7+ 79. Kg5 Qg7+ 80. Kf5 Qh7+ 81. Kg5 Qg7+ 82. Kf5 $11) 74... Qh2+ 75. Kg8 Qf4 76. Qb6+ Ka3 77. Qa5+ Kb2 78. Qb6+ Ka3) 64. gxf8=Q $18 {[%emt 0:00:07]} c1=Q {[%emt 0:00:17]} 65. Qb4+ {[%emt 0:00:31]} Ka2 {[%emt 0:00:32]} 66. Qa4+ $2 {[%emt 0:00:06]} (66. Qa5+ $18 Kb3 67. Qb5+ Ka2 68. Qa6+ Kb2 69. Qe2+ Kb1 70. Qe4+ Ka2 71. Qe2+ Ka1 72. Kg4) 66... Kb2 $2 {[%emt 0:00:08][%mdl 8192]} (66... Kb1 $16 67. Qe4+ Ka2 68. Qa4+ Kb1 69. Qb3+ Ka1) 67. Qd4+ $18 {[%emt 0:00:07]} Ka2 {[%emt 0:00:14]} 68. Ke2 $1 {[%emt 0:00:56]} ({Not} 68. Qa7+ Kb1 $16) 68... Qc6 {[%emt 0:00:36]} 69. f4 $1 {[%emt 0:00:41]} Qg2+ {[%emt 0:02:27]} 70. Ke3 {[%emt 0:00:05]} Qh3+ {[%emt 0:00:35]} 71. Ke4 {[%emt 0:00:12]} (71. Kd2 $142 {White threatens Qc4+ and mate.} Qg2+ 72. Kc3 Qg3+ 73. Kb4) 71... Qg2+ {[%emt 0:00:15]} 72. Kf5 {[%emt 0:01:09]} Qh3+ {[%emt 0:00:19]} 73. Kg5 {[%emt 0:00:26]} Qg3+ {[%emt 0:00:16]} 74. Kf6 {[%emt 0:00:08]} Qh4+ {[%emt 0:00:08]} 75. Ke6 {[%emt 0:00:08]} Qg4+ {[%emt 0:01:21]} 76. Kd6 $2 {[%emt 0:00:40]} (76. Ke7 Kb1 77. Qe4+ Kc1 78. Qe5) 76... Qc8 $2 {[%emt 0:01:34]} (76... Qg6+ 77. Kc5 Qc2+ 78. Kd5 (78. Qc4+ Ka3 $18) 78... Qf5+ 79. Qe5 Qd7+ 80. Kc5 Qa7+ 81. Kd6 Qa6+ 82. Ke7 Qa7+ 83. Kf6 Qa8 84. Qe6+ Kb2) 77. Qd5+ {[%emt 0:00:21]} Kb2 {[%emt 0:00:28]} 78. f5 {[%emt 0:00:16]} Qf8+ {[%emt 0:01:18]} 79. Ke5 {[%emt 0:00:13]} Qe7+ {[%emt 0:00:35]} 80. Qe6 {[%emt 0:00:04]} Qc5+ {[%emt 0:00:23]} 81. Kf6 {[%emt 0:00:11]} Kb1 {[%emt 0:00:31]} 82. Qe1+ {[%emt 0:00:46]} Ka2 {[%emt 0:00:42]} 83. Kg6 {[%emt 0:00:28]} Qc2 {[%emt 0:00:14]} 84. Qe6+ {[%emt 0:00:22]} Kb1 {[%emt 0:00:17]} 85. Qd5 {[%emt 0:00:46]} Ka1 {[%emt 0:00:51]} 86. Kg7 {[%emt 0:00:59]} Qc7+ {[%emt 0:00:19]} 87. Qf7 {[%emt 0:00:32]} Qg3+ {[%emt 0:00:19]} 88. Qg6 {[%emt 0:00:03]} Qc7+ {[%emt 0:00:14]} 89. Kg8 $1 {[%emt 0:00:05]} Qb8+ {[%emt 0:00:17]} 90. Kh7 {[%emt 0:00:09]} Qh2+ {[%emt 0:00:12]} 91. Qh6 {[%emt 0:00:15]} Qc2 {[%emt 0:00:15]} 92. Qh1+ {[%emt 0:00:33]} Ka2 {[%emt 0:00:10]} 93. Qf3 {[%emt 0:00:16]} Ka1 {[%emt 0:00:45]} 94. Kg7 {[%emt 0:00:26]} Qc7+ {[%emt 0:00:22]} 95. Kh6 {[%emt 0:00:35]} Qc1+ {[%emt 0:00:20]} 96. Kh5 {[%emt 0:00:23]} Qc5 {[%emt 0:00:07]} 97. Qe4 {[%emt 0:00:58]} Ka2 {[%emt 0:00:56]} 98. Kg6 {[%emt 0:00:22]} Qg1+ {[%emt 0:00:26]} 99. Kh7 {[%emt 0:00:33]} Qh2+ {[%emt 0:00:11]} 100. Kg8 {[%emt 0:00:22]} Qg3+ {[%emt 0:01:27]} 101. Kf7 {[%emt 0:00:08]} Qc7+ {[%emt 0:00:27]} 102. Qe7 {[%emt 0:00:04]} Qh2 {[%emt 0:00:27]} 103. Qe6+ {[%emt 0:00:34]} Kb1 {[%emt 0:00:07]} 104. Qe4+ {[%emt 0:00:58]} Ka1 {[%emt 0:00:21]} 105. f6 {[%emt 0:00:11]} Qc7+ {[%emt 0:00:47]} 106. Kg8 {[%emt 0:00:27]} Qb8+ {[%emt 0:00:11]} 107. Kg7 {[%emt 0:00:10]} Qg3+ {[%emt 0:00:10]} 108. Qg6 {[%emt 0:00:05]} Qc3 {[%emt 0:00:11]} 109. Qg1+ {[%emt 0:00:26]} Ka2 {[%emt 0:00:07]} 110. Qa7+ {[%emt 0:00:11]} Kb1 {[%emt 0:00:09]} 111. Qb6+ {[%emt 0:00:06]} Ka2 {[%emt 0:00:12]} 112. Qd6 {[%emt 0:00:12]} Kb1 {[%emt 0:00:14]} 113. Qf4 {[%emt 0:00:26]} Ka2 {[%emt 0:00:08]} 114. Qf5 {[%emt 0:00:00]} ({Resist} 114. Qa4+ Kb2 115. Qg4 Kb3 116. Qe6+ Kb2) 114... Qd4 {[%emt 0:00:27]} 115. Kg8 $2 {[%emt 0:00:20]} (115. Kg6 {Intending Qe6+ and mate.} Qd6 116. Qc2+ Ka3 117. Qc3+ Ka4 118. Kg7) 115... Qd8+ $18 {[%emt 0:03:41]} 116. Kh7 {[%emt 0:00:07]} Qc7+ {[%emt 0:00:28]} 117. f7 $2 {[%emt 0:00:08]} (117. Kg6 $18 {Threatening mate with Qf2+.} Qg3+ 118. Kh5 Qh2+ 119. Kg5 Qg1+ 120. Qg4 Qc5+ 121. Kg6 Qc2+ 122. Kh6 Qd2+ 123. Qg5) 117... Ka1 $2 {[%emt 0:00:43][%mdl 8192]} (117... Qh2+ $11 118. Kg7 Qg1+ 119. Qg6 Qd4+ 120. Kg8 Qd5) 118. Kh8 {[%emt 0:00:39]} Qh2+ {[%emt 0:00:27]} 119. Kg7 {[%emt 0:01:03]} Qg3+ {[%emt 0:00:38]} 120. Qg6 {[%emt 0:00:16]} Qc7 {[%emt 0:00:08]} 121. Qg4 {[%emt 0:01:38]} Qe5+ {[%emt 0:00:52]} 122. Kg8 {[%emt 0:00:17]} Qd5 {[%emt 0:00:12]} 123. Qg6 {[%emt 0:00:48]} Ka2 {[%emt 0:00:17]} 124. Kh7 {[%emt 0:01:25]} Qd7 {[%emt 0:00:41]} 125. Kh6 {[%emt 0:00:48]} Qh3+ {[%emt 0:00:13]} 126. Kg5 $2 {[%emt 0:00:12]} (126. Kg7 {mates} Qc3+ 127. Kh7 Qh3+ 128. Kg8 Qb3 129. Qa6+ Kb2 130. Kg7 Qg3+ 131. Qg6) 126... Qg3+ $2 {[%emt 0:00:17][%mdl 8192]} (126... Qe3+ $11 127. Kf6 Qc3+ 128. Ke7 Qb4+ 129. Qd6 Qh4+ 130. Qf6 Qb4+ 131. Qd6 Qb7+ 132. Kf6 Qf3+ 133. Kg7 Qg4+ 134. Qg6 Qd4+ 135. Kg8 Qc4 136. Qg2+ Ka3) 127. Kf6 {[%emt 0:00:19]} Qc3+ {[%emt 0:00:16]} 128. Ke7 {[%emt 0:00:18]} Qc7+ {[%emt 0:00:31]} 129. Kf8 $1 {[%emt 0:00:07]} Qd8+ {[%emt 0:00:23]} 130. Kg7 {[%emt 0:00:03]} Qd4+ {[%emt 0:00:19]} 131. Qf6 {[%emt 0:00:24]} Qg4+ {[%emt 0:00:12]} 132. Kh7 {[%emt 0:01:15]} Qh3+ {[%emt 0:00:12]} 133. Kg8 {[%emt 0:00:22]} Qg4+ {[%emt 0:00:12]} 134. Qg7 $1 {[%emt 0:00:05]} Qc4 {[%emt 0:00:06]} 135. Qg2+ {[%emt 0:00:32]} Ka1 {[%emt 0:00:21]} 136. Qf3 {[%emt 0:02:00]} Kb1 {[%emt 0:00:27]} 137. Qf5+ {[%emt 0:01:17]} Ka2 {[%emt 0:00:07]} 138. Kg7 {[%emt 0:00:22]} Qd4+ {[%emt 0:01:23]} 139. Kg6 {[%emt 0:00:39]} Qd6+ {[%emt 0:00:28]} 140. Kg5 {[%emt 0:00:19]} Qg3+ {[%emt 0:00:31]} 141. Kf6 {[%emt 0:00:07]} Qh4+ {[%emt 0:01:25]} 142. Ke6 {[%emt 0:00:09]} Qh6+ {[%emt 0:01:14]} 143. Ke7 {[%emt 0:00:22]} (143. Ke5 $142 Qh2+ 144. Qf4 Qh8+ 145. Ke4 Qh1+ 146. Qf3 Qe1+ 147. Kf5 Qa5+ 148. Kg4 Qb4+ 149. Qf4) 143... Qh4+ $18 {[%emt 0:00:04]} 144. Ke6 {[%emt 0:02:39]} Qh6+ {[%emt 0:00:29]} 145. Qf6 {[%emt 0:00:46]} (145. Ke5 $142 Qh2+ 146. Qf4 Qh8+ 147. Ke4 Qh1+ 148. Qf3 Qe1+ 149. Kf5 Qa5+ 150. Kg4 Qb4+ 151. Qf4) 145... Qe3+ $18 {[%emt 0:00:09] [#]} 146. Qe5 $1 {[%emt 0:00:08]} Qb6+ {[%emt 0:01:05]} 147. Kf5 {[%emt 0:01:01]} Qf2+ {[%emt 0:00:27] [#]} 148. Qf4 $1 {[%emt 0:00:10]} Qc5+ {[%emt 0:00:06]} 149. Kg4 {[%emt 0:00:23]} Qc8+ {[%emt 0:01:10]} 150. Qf5 {[%emt 0:01:37]} Qf8 {[%emt 0:01:10]} 151. Qf2+ {[%emt 0:00:46]} Kb3 {[%emt 0:00:35]} 152. Kh5 {[%emt 0:00:40]} Ka3 {[%emt 0:01:13]} 153. Qg3+ {[%emt 0:02:22]} Ka2 {[%emt 0:00:11]} 154. Kg6 {[%emt 0:00:08]} Kb1 {[%emt 0:00:59]} 155. Qb3+ {[%emt 0:00:23]} Ka1 {[%emt 0:00:27]} 156. Qc3+ {[%emt 0:00:07]} Ka2 {[%emt 0:00:22]} 157. Qf6 {[%emt 0:00:12]} Kb1 {[%emt 0:00:13]} 158. Kh7 {[%emt 0:00:13]} 1-0

[Event "Croatian 1B League 2022"]
[Site "Porec"]
[Date "2022.09.27"]
[Round "4.1"]
[White "Dobrovoljc, Vid"]
[Black "Teclaf, Pawel"]
[Result "0-1"]
[ECO "B50"]
[WhiteElo "2402"]
[BlackElo "2547"]
[Annotator "TA"]
[PlyCount "119"]
[EventDate "2022.09.24"]
[EventType "team-tourn"]
[EventCountry "CRO"]
[SourceTitle "playchess.com"]
[Source "ChessBase"]
[SourceQuality "1"]
[TimeControl "40/5400+30:1800+30"]

{[%evp 9,119,17,13,21,18,18,19,12,15,21,37,31,35,23,37,0,20,15,16,30,50,35,39,35,36,21,32,34,45,29,36,36,46,47,53,47,38,37,39,43,50,10,17,0,46,26,47,0,0,0,0,0,0,-11,-9,-9,-14,-53,-51,-105,-95,-112,-110,-117,-105,-118,-94,-94,-94,-94,-93,-106,-102,-106,-102,-104,-97,-181,-164,-163,-112,-163,-124,-518,-456,-515,-508,-492,-512,-567,-542,-958,-958,-839,-815,-5635,-6111,-5715,-5712,-2143,-1983,-29970,-29971,-29971,-29972,-29972,-29973,-29973,-29974,-29968,-29966,-4622]} 1. e4 {[%emt 0:01:29]} c5 {[%emt 0:00:03]} 2. Nc3 {[%emt 0:01:56]} a6 {[%emt 0:01:28]} 3. g3 {[%emt 0:00:35]} Nc6 {[%emt 0:06:22]} 4. Nf3 {[%emt 0:22:06]} d6 {[%emt 0:03:58]} 5. Bg2 {[%emt 0:01:55]} Bg4 {[%emt 0:01:53]} 6. h3 {[%emt 0:10:59] B50: Sicilian: 2...d6, Miscellaneous.} Bxf3 {[%emt 0:00:44]} 7. Bxf3 {[%emt 0:00:03]} g6 {[%emt 0:05:48]} 8. O-O {[%emt 0:03:25] The position is equal.} Bg7 {[%emt 0:02:58]} 9. Bg2 {[%emt 0:06:40]} Nf6 {[%emt 0:07:02]} 10. d3 {[%emt 0:05:48]} O-O {[%emt 0:03:32]} 11. a4 {[%emt 0:00:47]} Nd7 {[%emt 0:13:13]} 12. Re1 {[%emt 0:01:07]} Rc8 {[%emt 0:05:28][%cal Oc5c4] [#]} 13. Ne2 $146 {[%emt 0:11:58]} ({Predecessor:} 13. h4 c4 14. Bg5 Qa5 15. Nd5 e6 16. Ne7+ Nxe7 17. Bxe7 Rfe8 18. Bxd6 Bxb2 19. Rb1 {½-½ (45) Schiff,A-Schoembs,O freechess.de 2017}) 13... Qa5 {[%emt 0:18:19]} 14. Bd2 {[%emt 0:08:27]} Nb4 {[%emt 0:02:47]} 15. Qb1 {[%emt 0:01:42]} Rfe8 {[%emt 0:03:46]} 16. c3 {[%emt 0:02:57]} Nc6 {[%emt 0:00:02]} 17. Ra2 {[%emt 0:00:34]} Qc7 {[%emt 0:01:42]} 18. Rc1 {[%emt 0:01:31]} Qb8 {[%emt 0:01:19]} 19. a5 {[%emt 0:05:41]} e6 {[%emt 0:04:47]} 20. Be3 {[%emt 0:01:43]} Nce5 {[%emt 0:00:22]} 21. b3 {[%emt 0:02:20]} Rc7 {[%emt 0:01:22]} 22. Bf4 {[%emt 0:02:51]} Rcc8 {[%emt 0:00:25]} 23. Rd1 {[%emt 0:00:43]} Nc6 {[%emt 0:00:40]} 24. Be3 {[%emt 0:01:00]} Bf8 {[%emt 0:01:47]} 25. Nf4 {[%emt 0:01:03]} Bg7 {[%emt 0:00:30]} 26. Ne2 {[%emt 0:00:30]} Bf8 $1 {[%emt 0:00:30]} 27. Kh1 {[%emt 0:00:30]} Bg7 {[%emt 0:00:30]} 28. b4 {[%emt 0:00:30]} (28. Rc1 $14) 28... cxb4 $11 {[%emt 0:00:30]} 29. cxb4 {[%emt 0:00:30]} Na7 {[%emt 0:00:30]} 30. Rc1 {[%emt 0:00:30]} Nb5 {[%emt 0:00:30]} 31. Rc4 {[%emt 0:00:30]} Ne5 {[%emt 0:00:30][%cal Bd7e5,Be5c6,Bc6d4][%mdl 32] Pair of Knights!} 32. Rxc8 {[%emt 0:00:30]} Rxc8 {[%emt 0:00:30]} 33. f4 {[%emt 0:00:30]} Nc6 {[%emt 0:00:30]} 34. Bf1 {[%emt 0:00:30]} ({White should play} 34. Qb3 $15) 34... Bc3 $17 {[%emt 0:00:30]} 35. Ra4 {[%emt 0:00:30]} Ncd4 {[%emt 0:00:30]} 36. Ra2 {[%emt 0:00:30][%cal Of4f5]} Qc7 {[%emt 0:00:30]} 37. Kg2 {[%emt 0:00:30]} Qc6 {[%emt 0:00:30]} 38. h4 {[%emt 0:03:19]} h5 {[%emt 0:08:06]} 39. Kh3 {[%emt 0:00:18]} Nxe2 {[%emt 0:04:08]} 40. Bxe2 {[%emt 0:00:00]} Bd4 {[%emt 0:00:00]} 41. Bd2 {[%emt 0:07:18]} Nc3 $36 {[%emt 0:10:52][%mdl 2048] Keeping White busy. Black is more active.} 42. Bxc3 {[%emt 0:01:00]} Qxc3 {[%emt 0:00:05]} 43. g4 {[%emt 0:04:26]} (43. Kg2 $17 {is a better defense.}) 43... hxg4+ $19 {[%emt 0:02:00]} 44. Bxg4 {[%emt 0:00:20]} Kg7 {[%emt 0:06:56]} (44... Bf6 $19 {...Qd4 is the strong threat.} 45. h5 Qd4) 45. Re2 {[%emt 0:08:00]} (45. f5 $17) 45... Rc4 {[%emt 0:02:05]} 46. f5 $2 {[%emt 0:02:41][%mdl 8192] Now White is beyond hope.} (46. Rb2 $17 {is tougher.} Rc8 47. Rg2) 46... Rxb4 {[%emt 0:01:05]} 47. Qd1 {[%emt 0:00:38]} exf5 {[%emt 0:02:14]} 48. exf5 {[%emt 0:00:04] [#]} Be5 $1 {[%emt 0:02:05] White must now prevent ...Qd4.} 49. fxg6 {[%emt 0:01:06] [#]} Qd4 $1 {[%emt 0:00:46][%csl Gb4][%cal Rd4g4]} 50. Re4 {[%emt 0:02:20] [#]} Qf2 {[%emt 0:01:40][%csl Ge5][%cal Rf2h2]} 51. Rxe5 {[%emt 0:00:04]} dxe5 {[%emt 0:00:05]} 52. gxf7 {[%emt 0:00:09][%mdl 4096] Endgame KQR-KQB} Qe3+ {[%emt 0:00:53]} 53. Qf3 {[%emt 0:00:27]} Qxf3+ {[%emt 0:00:05]} 54. Bxf3 {[%emt 0:00:04]} Kxf7 {[%emt 0:00:22] ( -> ...b6). KR-KB} 55. Be4 {[%emt 0:00:17]} b6 {[%emt 0:01:09] Black mates.} 56. axb6 {[%emt 0:00:05]} Rxb6 {[%emt 0:00:03]} 57. Kg4 {[%emt 0:00:04]} Kf6 {[%emt 0:00:06]} 58. h5 {[%emt 0:00:15]} a5 {[%emt 0:00:24][%cal Ba6a5,Ba5a4][%mdl 32]} 59. h6 {[%emt 0:00:13]} a4 {[%emt 0:01:19]} 60. h7 {[%emt 0:01:23] Weighted Error Value: White=0.64/Black=0.06 (flawless)} 0-1